bitfinex/quotes_SOLUSD_20250612
["timestamp","ask_amount","ask_price","bid_price","bid_amount"]
[1749753883590,19.36276048,157.55,157.54,27.4]
[1749753883992,25.70995184,157.55,157.54,27.4]
[1749753884213,73.31388708,157.55,157.54,27.38]
[1749753884409,53.9511266,157.55,157.54,27.38]
[1749753884593,26.0,157.52,157.45,6.3787]
[1749753884796,19.36276048,157.51,157.47,19.36276048]
[1749753885004,26.0,157.52,157.47,19.36276048]
[1749753885193,45.36276048,157.52,157.47,19.36276048]
[1749753886198,22.22081137,157.51,157.47,19.36276048]
[1749753886624,41.58357185,157.51,157.48,27.38]
[1749753887003,22.22081137,157.51,157.48,27.38]
[1749753887208,41.58357185,157.51,157.48,27.38]
[1749753887525,22.22081137,157.51,157.48,27.38]
[1749753888925,41.58357185,157.51,157.48,27.38]
[1749753889627,41.58357185,157.51,157.49,27.36]
[1749753891729,22.22081137,157.51,157.49,27.36]
[1749753894126,41.58357185,157.51,157.49,27.36]
[1749753894422,19.36276048,157.5,157.49,27.36]
[1749753895502,19.36276048,157.5,157.49,27.32]
[1749753896112,19.36276048,157.5,157.49,27.3]
[1749753896297,41.58498269,157.5,157.42,19.36276048]
[1749753896503,19.36276048,157.47,157.43,27.3]
[1749753896702,19.36276048,157.47,157.43,46.66276048]
[1749753897124,19.36276048,157.48,157.43,19.36276048]
[1749753897425,53.96825395,157.5,157.44,46.66276048]
[1749753897722,19.36276048,157.49,157.44,46.66276048]
[1749753898314,19.36276048,157.48,157.44,46.66276048]
[1749753898510,15.87301587,157.5,157.46,19.36276048]
[1749753898813,15.87301587,157.5,157.47,27.28]
[1749753899541,25.71156373,157.51,157.47,46.64276048]
[1749753899826,25.71156373,157.51,157.47,27.28]
[1749753900030,19.36276048,157.49,157.47,27.28]
[1749753900406,6.3500127,157.48,157.47,27.28]
[1749753900830,25.71277318,157.48,157.47,27.28]
[1749753901340,41.58780493,157.48,157.47,27.26]
[1749753901539,41.58780493,157.48,157.41,6.5206]
[1749753901715,19.36276048,157.43,157.38,19.36276048]
[1749753901927,19.36276048,157.43,157.39,27.26]
[1749753902413,6.35243298,157.42,157.39,19.36276048]
[1749753902617,6.35162601,157.44,157.41,19.36276048]
[1749753902819,6.3500127,157.48,157.43,19.36276048]
[1749753903115,6.3500127,157.48,157.45,19.36276048]
[1749753903313,6.3500127,157.48,157.46,19.36276048]
[1749753903522,6.3500127,157.48,157.47,27.32]
[1749753903916,19.36276048,157.51,157.47,27.32]
[1749753904123,25.71116068,157.52,157.47,46.68276048]
[1749753904437,19.36276048,157.51,157.47,27.32]
[1749753904745,19.36276048,157.51,157.47,46.68276048]
[1749753905104,22.2194007,157.52,157.47,46.68276048]
[1749753905304,19.36276048,157.51,157.47,46.68276048]
[1749753905735,41.58216118,157.52,157.47,46.68276048]
[1749753906221,19.36276048,157.51,157.47,46.68276048]
[1749753906615,6.34920634,157.5,157.47,46.68276048]
[1749753907451,6.34920634,157.5,157.47,27.32]
[1749753907604,41.58498269,157.5,157.47,27.32]
[1749753907809,19.36276048,157.48,157.42,1.5863]
[1749753908011,19.36276048,157.46,157.41,19.36276048]
[1749753908226,19.36276048,157.45,157.42,27.32]
[1749753908412,26.0,157.47,157.43,27.32]
[1749753908617,6.35081925,157.46,157.43,27.32]
[1749753909023,25.71357973,157.46,157.42,19.36276048]
[1749753909230,51.27322148,157.46,157.43,27.32]
[1749753909425,6.35081925,157.46,157.44,29.0453541]
[1749753909618,6.3500127,157.48,157.43,27.32]
[1749753910607,6.34920634,157.5,157.43,27.32]
[1749753911025,6.34920634,157.5,157.47,29.0453541]
[1749753911208,6.34920634,157.5,157.48,27.34]
[1749753911424,6.34893962,157.51,157.49,29.0453541]
[1749753911627,6.34893962,157.51,157.48,27.34]
[1749753911628,6.34893962,157.51,157.5,29.0453541]
[1749753911834,6.34893962,157.51,157.49,29.0453541]
[1749753912139,6.34893962,157.51,157.48,27.34]
[1749753912315,6.34893962,157.51,157.48,56.3853541]
[1749753912516,6.34893962,157.51,157.49,29.0453541]
[1749753912711,6.3484002,157.52,157.49,29.0453541]
[1749753913138,15.86754441,157.56,157.51,29.0453541]
[1749753913340,6.34719136,157.55,157.52,27.34]
[1749753913521,29.0453541,157.53,157.52,27.34]
[1749753913725,29.0453541,157.53,157.46,29.0453541]
[1749753913927,29.0453541,157.5,157.47,27.34]
[1749753914123,29.0453541,157.49,157.48,27.36]
[1749753914351,26.0,157.52,157.48,27.36]
[1749753914557,55.0453541,157.52,157.48,27.36]
[1749753914718,6.34880325,157.51,157.48,56.4053541]
[1749753916139,51.26616547,157.51,157.48,27.36]
[1749753916739,22.22081137,157.51,157.48,27.36]
[1749753916942,51.26616547,157.51,157.48,27.36]
[1749753917239,6.34880325,157.51,157.48,27.36]
[1749753918330,6.34880325,157.51,157.48,56.4053541]
[1749753918534,6.34880325,157.51,157.48,27.36]
[1749753919522,29.0453541,157.5,157.48,27.36]
[1749753920336,51.26616547,157.51,157.48,27.36]
[1749753920529,22.22081137,157.51,157.48,27.36]
[1749753920730,51.26616547,157.51,157.48,27.36]
[1749753921547,77.26898733,157.49,157.41,117.5453541]
[1749753921851,29.0453541,157.47,157.42,56.3853541]
[1749753922153,29.0453541,157.46,157.42,56.3853541]
[1749753922646,29.0453541,157.47,157.42,56.3853541]
[1749753922820,29.0453541,157.47,157.43,27.34]
[1749753923017,29.0453541,157.46,157.43,27.34]
[1749753923448,6.35122261,157.45,157.44,27.34]
[1749753924752,22.22927913,157.45,157.41,29.0453541]
[1749753924932,51.27463323,157.45,157.42,27.32]
[1749753925135,22.22927913,157.45,157.42,27.32]
[1749753926266,51.27463323,157.45,157.41,29.0453541]
[1749753926545,51.27463323,157.45,157.4,29.0453541]
[1749753926752,6.35122261,157.45,157.43,29.0453541]
[1749753927048,35.39657671,157.45,157.44,27.3]
[1749753927247,6.35122261,157.45,157.44,27.3]
[1749753927723,51.27463323,157.45,157.37,1.5449]
[1749753927919,51.27463323,157.45,157.4,29.0453541]
[1749753928133,51.27463323,157.45,157.41,56.3253541]
[1749753928845,6.35122261,157.45,157.43,29.0453541]
[1749753929149,6.35122261,157.45,157.44,27.28]
[1749753930051,6.35041595,157.47,157.44,27.28]
[1749753931535,6.35041595,157.47,157.44,46.63917043]
[1749753931756,6.35041595,157.47,157.46,19.35917043]
[1749753931940,6.34920634,157.5,157.46,19.35917043]
[1749753932245,6.34880325,157.51,157.49,19.35917043]
[1749753932546,6.34880325,157.51,157.5,27.26]
[1749753932750,6.34880325,157.51,157.5,46.61917043]
[1749753932941,6.34880325,157.51,157.5,27.26]
[1749753933942,6.34880325,157.51,157.5,46.61917043]
[1749753934142,22.21799021,157.53,157.5,27.26]
[1749753935950,22.21799021,157.53,157.5,46.61917043]
[1749753936163,22.21799021,157.53,157.5,27.26]
[1749753936164,35.22916344,157.53,157.5,27.26]
[1749753937649,15.86999301,157.53,157.5,27.26]
[1749753937827,22.21799021,157.53,157.5,27.26]
[1749753938442,6.3479972,157.53,157.51,19.35917043]
[1749753938634,6.3479972,157.53,157.52,19.35917043]
[1749753938836,6.3479972,157.53,157.51,19.35917043]
[1749753939263,6.3479972,157.53,157.5,27.26]
[1749753939568,6.3479972,157.53,157.51,19.35917043]
[1749753939728,6.3479972,157.53,157.5,27.26]
[1749753939928,22.21671693,157.54,157.5,27.26]
[1749753940144,19.35917043,157.52,157.48,19.35917043]
[1749753940465,22.21671693,157.54,157.49,27.22]
[1749753940466,19.35917043,157.53,157.49,27.22]
[1749753941084,19.35917043,157.52,157.49,27.22]
[1749753941389,19.35917043,157.53,157.49,27.22]
[1749753941689,19.35917043,157.53,157.49,46.57917043]
[1749753941856,22.21671693,157.54,157.49,27.22]
[1749753942181,19.35917043,157.53,157.49,27.22]
[1749753942882,19.35917043,157.52,157.49,27.22]
[1749753943767,19.35917043,157.51,157.46,19.35917043]
[1749753944083,6.34920634,157.5,157.48,19.35917043]
[1749753945949,22.22127403,157.51,157.49,27.22]
[1749753946480,19.35917043,157.5,157.45,19.35917043]
[1749753946650,41.58044446,157.51,157.47,19.35917043]
[1749753946858,41.58044446,157.51,157.48,27.22]
[1749753947065,41.58044446,157.51,157.49,27.26]
[1749753947983,41.52953526,157.51,157.49,27.26]
[1749753948775,19.35917043,157.5,157.49,27.26]
[1749753948981,19.35917043,157.5,157.44,19.35917043]
[1749753949188,19.35917043,157.48,157.45,27.24]
[1749753949384,53.91438108,157.51,157.45,27.24]
[1749753949672,53.91438108,157.51,157.46,27.24]
[1749753949673,19.35917043,157.48,157.46,27.24]
[1749753950992,6.35041595,157.47,157.46,27.24]
[1749753951990,6.35041595,157.47,157.46,27.22]
[1749753952662,41.58562626,157.47,157.43,19.35917043]
[1749753952886,19.35917043,157.44,157.4,19.35917043]
[1749753953092,25.7111999,157.43,157.39,19.35917043]
[1749753953297,19.35917043,157.41,157.36,1.5379]
[1749753953452,22.23210315,157.43,157.34,25.57457043]
[1749753953453,19.35917043,157.39,157.34,25.57457043]
[1749753953653,19.35917043,157.38,157.35,27.24]
[1749753954392,19.35917043,157.38,157.34,19.35917043]
[1749753954599,26.0,157.39,157.36,27.22]
[1749753954876,45.35917043,157.39,157.36,27.22]
[1749753955082,6.35404752,157.38,157.34,19.35917043]
[1749753955283,6.35404752,157.38,157.35,27.22]
[1749753955465,6.35243298,157.42,157.37,19.35917043]
[1749753955663,6.35243298,157.42,157.35,27.22]
[1749753955664,6.35215473,157.43,157.4,19.35917043]
[1749753955889,6.35215473,157.43,157.41,27.24]
[1749753956994,25.71132516,157.43,157.41,27.24]
[1749753957394,35.40958196,157.43,157.41,27.24]
[1749753957699,29.05742723,157.42,157.41,27.24]
[1749753958112,29.05742723,157.42,157.35,29.05742723]
[1749753958279,29.05742723,157.41,157.36,56.27742723]
[1749753958468,29.05742723,157.41,157.37,56.27742723]
[1749753959394,6.35324015,157.4,157.37,27.22]
[1749753959700,35.41066738,157.4,157.37,27.22]
[1749753959885,35.41066738,157.4,157.38,27.2]
[1749753960199,35.41037128,157.41,157.38,27.2]
[1749753960699,22.2350354,157.41,157.39,27.2]
[1749753960876,29.05742723,157.4,157.36,29.05742723]
[1749753961076,29.05742723,157.4,157.37,27.2]
[1749753961400,6.35364381,157.39,157.37,27.2]
[1749753962490,6.35364381,157.39,157.31,96.2533]
[1749753962491,29.05742723,157.38,157.31,96.2533]
[1749753962688,29.05742723,157.35,157.29,0.8567127]
[1749753962905,26.0,157.36,157.3,27.18]
[1749753963073,26.0,157.36,157.29,0.8567127]
[1749753963074,29.05742723,157.31,157.29,0.8567127]
[1749753963410,36.93630631,157.3,157.29,0.8567127]
[1749753963709,56.01243988,157.3,157.29,0.8567127]
[1749753964002,26.0,157.27,157.15,2.75719792]
[1749753964201,29.05742723,157.22,157.17,29.05742723]
[1749753964386,48.1335608,157.25,157.15,2.75719792]
[1749753964585,19.07613357,157.26,157.21,29.05742723]
[1749753964785,29.05742723,157.25,157.22,27.24]
[1749753965098,26.0,157.27,157.23,56.29742723]
[1749753965298,6.35889609,157.26,157.23,56.29742723]
[1749753965602,6.35889609,157.26,157.23,27.24]
[1749753966181,29.05742723,157.24,157.23,27.4]
[1749753966407,29.05742723,157.24,157.15,2.75719792]
[1749753966581,26.0,157.23,157.15,2.75719792]
[1749753966899,26.0,157.22,157.15,31.81462515]
[1749753967140,26.0,157.22,157.17,29.05742723]
[1749753967141,29.05742723,157.21,157.17,29.05742723]
[1749753967409,6.36091851,157.21,157.15,2.75719792]
[1749753967705,35.41834574,157.21,157.16,29.05742723]
[1749753967874,6.36091851,157.21,157.17,29.05742723]
[1749753968075,35.41834574,157.21,157.16,29.05742723]
[1749753968305,29.05742723,157.2,157.15,31.81462515]
[1749753969004,29.05742723,157.2,157.15,2.75719792]
[1749753969179,6.36091851,157.21,157.15,31.81462515]
[1749753969378,29.05742723,157.2,157.15,31.81462515]
[1749753969579,6.36172784,157.19,157.15,31.81462515]
[1749753970006,35.41834574,157.21,157.17,29.05742723]
[1749753970229,6.36091851,157.21,157.18,27.6]
[1749753970515,35.41834574,157.21,157.18,27.6]
[1749753970718,29.05742723,157.2,157.15,2.75719792]
[1749753970934,29.05742723,157.2,157.18,27.6]
[1749753971296,55.05742723,157.19,157.18,27.6]
[1749753971497,32.36172784,157.19,157.18,27.6]
[1749753971822,61.41915507,157.19,157.18,27.6]
[1749753972220,32.36172784,157.19,157.18,27.6]
[1749753972404,48.26604745,157.19,157.15,2.75719792]
[1749753972591,29.05742723,157.17,157.15,2.75719792]
[1749753973224,26.0,157.16,157.15,2.75719792]
[1749753973610,32.36294222,157.16,157.15,2.75719792]
[1749753974919,6.36261323,157.17,157.15,2.75719792]
[1749753975722,6.36213258,157.18,157.15,2.75719792]
[1749753975923,6.36213258,157.18,157.15,31.81462515]
[1749753976322,6.36213258,157.18,157.15,2.75719792]
[1749753976927,6.36213258,157.18,157.15,31.81462515]
[1749753977302,6.36213258,157.18,157.15,2.75719792]
[1749753977503,35.41955981,157.18,157.15,2.75719792]
[1749753978002,29.05742723,157.17,157.15,2.75719792]
[1749753978446,29.05742723,157.17,157.15,30.73719792]
[1749753978637,6.36213258,157.18,157.15,30.73719792]
[1749753978836,29.05742723,157.16,157.15,2.75719792]
[1749753979355,19.07613357,157.17,157.15,2.75719792]
[1749753979649,54.49650302,157.16,157.15,2.75719792]
[1749753980256,25.43907579,157.16,157.15,2.75719792]
[1749753980422,54.49650302,157.16,157.15,2.75719792]
[1749753981321,35.42036945,157.16,157.15,2.75719792]
[1749753982345,54.49650302,157.16,157.15,2.75719792]
[1749753982545,35.42036945,157.16,157.15,2.75719792]
[1749753983220,54.49650302,157.16,157.15,2.75719792]
[1749753984416,25.43907579,157.16,157.15,2.75719792]
[1749753984618,54.49650302,157.16,157.15,2.75719792]
[1749753985355,26.0,157.13,157.06,0.15]
[1749753985654,26.0,157.13,157.06,28.27]
[1749753985958,26.0,157.09,157.06,28.27]
[1749753986166,29.05742723,157.07,157.06,0.15]
[1749753986363,26.0,157.09,157.06,0.15]
[1749753986527,29.05742723,157.08,157.06,0.15]
[1749753986722,26.0,157.09,157.06,0.15]
[1749753986927,29.05742723,157.08,157.06,0.15]
[1749753987231,6.36658814,157.07,157.06,0.15]
[1749753987432,35.42401537,157.07,157.06,0.15]
[1749753988228,6.36658814,157.07,157.06,0.15]
[1749753989257,22.28029017,157.09,157.06,0.15]
[1749753989442,22.28029017,157.09,157.07,28.14]
[1749753990725,6.36577757,157.09,157.07,57.19742723]
[1749753991126,15.91222705,157.12,157.08,29.05742723]
[1749753991359,44.96965428,157.12,157.07,28.14]
[1749753991565,41.91222705,157.12,157.07,28.14]
[1749753991728,70.96965428,157.12,157.08,29.05742723]
[1749753992123,70.96965428,157.12,157.07,28.14]
[1749753992341,29.05742723,157.11,157.07,57.19742723]
[1749753992628,41.91222705,157.12,157.07,28.14]
[1749753992923,29.05742723,157.11,157.07,28.14]
[1749753993361,22.2788033,157.1,157.07,28.14]
[1749753993570,22.2788033,157.1,157.07,57.19742723]
[1749753994746,22.2788033,157.1,157.07,28.14]
[1749753994946,22.2788033,157.1,157.07,57.19742723]
[1749753995365,15.91343093,157.1,157.07,57.19742723]
[1749753996454,22.2788033,157.1,157.07,28.14]
[1749753997154,51.33623053,157.1,157.07,28.14]
[1749753997339,51.33623053,157.1,157.06,1.7526]
[1749753997340,26.0,157.07,157.06,0.15]
[1749753997538,29.05742723,157.07,156.99,6.6257]
[1749753997766,29.05742723,157.02,157.0,28.02]
[1749753997970,29.05742723,157.02,156.99,6.6257]
[1749753998280,26.0,157.08,157.01,29.05742723]
[1749753998446,92.52121876,157.1,157.0,28.02]
[1749753998447,29.05742723,157.09,157.05,29.05742723]
[1749753998768,29.05742723,157.08,157.06,28.02]
[1749753998948,29.05742723,157.08,157.07,28.02]
[1749753999152,85.93252704,157.1,157.07,28.02]
[1749753999153,54.10566517,157.1,157.07,28.02]
[1749753999464,19.45636998,157.09,157.07,28.02]
[1749753999669,54.10566517,157.1,157.07,28.02]
[1749753999978,19.45636998,157.08,157.07,28.02]
[1749754000270,19.45636998,157.09,157.07,28.02]
[1749754000479,6.36618283,157.08,157.07,28.02]
[1749754002485,35.36980091,157.1,157.07,28.02]
[1749754002486,6.36577757,157.09,157.07,28.02]
[1749754003566,19.45636998,157.08,157.07,28.02]
[1749754003966,25.82214755,157.09,157.07,28.02]
[1749754005677,19.45636998,157.08,157.07,28.02]
[1749754005872,19.45636998,157.08,157.07,27.94]
[1749754006254,19.45636998,157.08,156.99,6.6257]
[1749754006458,6.36780438,157.04,157.01,19.45636998]
[1749754006658,6.36780438,157.04,157.02,27.94]
[1749754007076,6.36780438,157.04,157.02,47.39636998]
[1749754007385,6.36780438,157.04,157.03,19.45636998]
[1749754007585,6.36780438,157.04,157.02,27.94]
[1749754007891,6.36780438,157.04,157.03,19.45636998]
[1749754008071,6.36658814,157.07,157.03,19.45636998]
[1749754008272,6.36658814,157.07,157.05,19.45636998]
[1749754008599,22.28259722,157.08,157.06,27.9]
[1749754008778,22.28259722,157.08,157.06,47.35636998]
[1749754008982,6.36618283,157.08,157.06,47.35636998]
[1749754009169,6.36618283,157.08,157.07,19.45636998]
[1749754009381,6.36618283,157.08,157.06,47.35636998]
[1749754009563,6.36618283,157.08,157.07,19.45636998]
[1749754010279,6.36618283,157.08,157.06,27.9]
[1749754010476,22.2788033,157.1,157.06,47.35636998]
[1749754010675,22.2788033,157.1,157.0,36.0]
[1749754010676,54.10566517,157.1,157.0,1.6137]
[1749754010882,19.45636998,157.08,157.01,27.9]
[1749754011074,54.10566517,157.1,157.03,19.45636998]
[1749754011277,54.10566517,157.1,157.04,27.88]
[1749754011480,19.45636998,157.08,157.04,47.33636998]
[1749754012075,19.45636998,157.08,157.05,27.88]
[1749754012486,6.36658814,157.07,157.05,27.88]
[1749754013004,6.36658814,157.07,157.06,27.86]
[1749754013182,25.82295812,157.07,157.06,27.86]
[1749754013380,6.36658814,157.07,157.06,27.86]
[1749754015291,25.82295812,157.07,157.06,27.86]
[1749754015916,6.36658814,157.07,157.06,27.86]
[1749754016377,6.36658814,157.07,157.03,19.45636998]
[1749754016711,6.36658814,157.07,157.04,27.86]
[1749754016886,6.36658814,157.07,157.04,47.31636998]
[1749754017283,6.36658814,157.07,157.04,27.86]
[1749754017481,19.45636998,157.06,157.0,1.6137]
[1749754017694,19.45636998,157.04,157.01,27.84]
[1749754017898,22.2830585,157.07,157.01,27.84]
[1749754018395,19.45636998,157.05,157.01,47.29636998]
[1749754018808,6.36780438,157.04,157.01,47.29636998]
[1749754019179,6.36780438,157.04,157.01,27.84]
[1749754019379,6.36780438,157.04,157.02,27.86]
[1749754020100,6.36780438,157.04,157.02,47.31636998]
[1749754020403,6.36780438,157.04,157.02,27.86]
[1749754020775,6.36739891,157.05,157.02,27.86]
[1749754021391,25.82376889,157.05,157.02,27.86]
[1749754021594,19.45636998,157.04,157.02,27.86]
[1749754021900,19.45636998,157.04,157.03,27.82]
[1749754022287,19.45636998,157.04,156.97,6.65051009]
[1749754022598,22.2858962,157.05,157.01,19.45636998]
[1749754022599,6.36739891,157.05,157.01,19.45636998]
[1749754022805,19.45636998,157.08,157.04,19.45636998]
[1749754023021,19.45636998,157.08,157.05,27.86]
[1749754023193,19.45636998,157.06,157.05,27.86]
[1749754023380,18.64964886,157.1,157.05,27.86]
[1749754023591,19.45636998,157.06,156.99,7.35659739]
[1749754023797,19.45636998,157.03,157.0,27.92]
[1749754023992,19.45636998,157.02,157.0,27.92]
[1749754024403,19.45636998,157.03,157.0,27.92]
[1749754024707,26.0,157.09,157.0,27.92]
[1749754024900,6.36739891,157.05,157.02,19.45636998]
[1749754025090,6.36739891,157.05,156.99,7.35659739]
[1749754025091,6.36739891,157.05,157.03,47.43636998]
[1749754025508,6.36739891,157.05,157.03,27.98]
[1749754025708,19.45636998,157.04,157.03,27.98]
[1749754025899,19.45636998,157.04,156.99,1.5628]
[1749754026197,19.45636998,157.04,157.0,27.98]
[1749754026408,19.45636998,157.03,156.99,1.5628]
[1749754026614,19.45636998,157.02,157.0,28.0]
[1749754026913,6.3669935,157.06,157.01,19.45636998]
[1749754027123,41.74084724,157.06,157.01,19.45636998]
[1749754027320,22.28447726,157.06,157.0,28.0]
[1749754027623,6.3669935,157.06,157.02,19.45636998]
[1749754028118,22.28447726,157.06,157.01,19.45636998]
[1749754028314,41.74084724,157.06,157.0,28.0]
[1749754028521,22.28447726,157.06,157.01,19.45636998]
[1749754028722,41.74084724,157.06,157.0,28.0]
[1749754029030,41.74084724,157.06,157.01,19.45636998]
[1749754029235,19.45636998,157.04,156.99,7.51042422]
[1749754029393,19.45636998,157.05,157.02,27.98]
[1749754029592,41.74084724,157.06,157.02,27.98]
[1749754029800,6.3669935,157.06,157.02,47.43636998]
[1749754030006,6.3669935,157.06,157.02,27.98]
[1749754030216,25.82336348,157.06,157.02,27.98]
[1749754030518,22.28447726,157.06,157.02,27.98]
[1749754030728,41.74084724,157.06,157.02,27.98]
[1749754031227,6.3669935,157.06,157.03,19.45636998]
[1749754031523,6.3669935,157.06,157.02,27.98]
[1749754031702,6.3669935,157.06,156.99,1.5628]
[1749754031703,19.45636998,157.05,157.03,27.96]
[1749754031913,22.28447726,157.06,157.03,27.96]
[1749754032911,6.3669935,157.06,157.03,27.96]
[1749754033120,19.45636998,157.05,157.03,27.96]
[1749754033308,41.74084724,157.06,157.03,27.96]
[1749754033628,41.74084724,157.06,157.04,27.98]
[1749754033809,6.3669935,157.06,157.04,27.98]
[1749754034137,6.36618283,157.08,157.05,19.45636998]
[1749754034839,6.36618283,157.08,157.06,19.45636998]
[1749754035001,6.36618283,157.08,157.07,28.0]
[1749754035203,41.73517328,157.1,157.07,28.0]
[1749754035421,22.2788033,157.1,157.07,28.0]
[1749754035621,41.73517328,157.1,157.07,28.0]
[1749754035822,22.2788033,157.1,157.07,47.45636998]
[1749754036012,6.36537237,157.1,157.08,19.45636998]
[1749754037333,19.45636998,157.1,157.07,28.0]
[1749754038013,22.27738527,157.11,157.08,27.98]
[1749754038210,19.45636998,157.1,157.08,27.98]
[1749754038606,19.45636998,157.09,157.05,1.5477]
[1749754038802,19.45636998,157.08,157.04,19.45636998]
[1749754039338,19.45636998,157.1,157.05,47.41636998]
[1749754039504,15.91241805,157.11,157.08,19.45636998]
[1749754039706,6.36456211,157.12,157.09,47.41636998]
[1749754039914,8.66408499,157.12,157.09,27.96]
[1749754040212,6.36456211,157.12,157.09,27.96]
[1749754040436,6.36456211,157.12,157.09,47.41636998]
[1749754040732,41.73233738,157.12,157.09,27.96]
[1749754040936,19.45636998,157.11,157.09,27.96]
[1749754041129,19.45636998,157.11,157.1,27.96]
[1749754041447,6.36496722,157.11,157.1,27.96]
[1749754042134,25.8213372,157.11,157.1,27.96]
[1749754042334,6.36496722,157.11,157.1,27.96]
[1749754043944,25.8213372,157.11,157.1,27.96]
[1749754044439,6.36496722,157.11,157.1,27.96]
[1749754044607,6.36496722,157.11,157.04,7.58642422]
[1749754044809,22.27738527,157.11,157.05,27.9]
[1749754045121,22.27738527,157.11,157.07,19.45636998]
[1749754045311,15.91241805,157.11,157.08,27.88]
[1749754046114,35.36878803,157.11,157.08,27.88]
[1749754046339,6.36456211,157.12,157.09,19.45636998]
[1749754046836,41.73233738,157.12,157.08,27.88]
[1749754047035,22.2759674,157.12,157.08,47.33636998]
[1749754047411,22.2759674,157.12,157.08,27.88]
[1749754047612,19.45636998,157.11,157.08,27.88]
[1749754047920,22.2759674,157.12,157.08,27.88]
[1749754048438,19.45636998,157.11,157.08,27.88]
[1749754049426,19.45636998,157.11,157.09,27.88]
[1749754049620,22.2759674,157.12,157.04,1.6388]
[1749754049621,19.45636998,157.1,157.04,1.6388]
[1749754049829,19.45636998,157.07,157.05,27.86]
[1749754050130,19.45636998,157.07,157.06,27.84]
[1749754051010,99.55514797,157.12,157.06,27.84]
[1749754051205,99.55514797,157.12,157.02,19.45636998]
[1749754051206,19.45636998,157.07,157.02,19.45636998]
[1749754051417,19.45636998,157.07,157.03,27.84]
[1749754051842,6.3669935,157.06,157.03,47.29636998]
[1749754052010,6.36618283,157.08,157.05,19.45636998]
[1749754052216,6.36618283,157.08,157.01,12.24702422]
[1749754052217,6.36618283,157.08,157.07,19.45636998]
[1749754052527,6.36618283,157.08,157.07,47.27636998]
[1749754052929,6.36618283,157.08,157.07,27.82]
[1749754053824,22.2788707,157.1,157.07,27.82]
[1749754054036,6.36537237,157.1,157.07,47.27636998]
[1749754054549,6.36537237,157.1,157.07,29.364]
[1749754054729,6.36537237,157.1,157.09,19.45636998]
[1749754055123,6.36456211,157.12,157.09,19.45636998]
[1749754055325,6.36456211,157.12,157.1,47.25636998]
[1749754055832,25.82093209,157.12,157.1,27.8]
[1749754056140,19.45636998,157.11,157.07,1.544]
[1749754056323,19.45636998,157.11,157.08,27.78]
[1749754057034,19.45636998,157.1,157.08,27.78]
[1749754057215,19.45636998,157.11,157.08,27.78]
[1749754057924,6.36537237,157.1,157.08,27.78]
[1749754058256,31.82042385,157.14,157.09,19.45636998]
[1749754058257,19.45636998,157.14,157.09,19.45636998]
[1749754058551,15.90877693,157.15,157.11,19.45636998]
[1749754058726,18.20918768,157.15,157.12,27.74]
[1749754058916,37.66558469,157.15,157.12,27.74]
[1749754059156,35.36514691,157.15,157.12,27.74]
[1749754059355,15.90877693,157.15,157.12,27.74]
[1749754059647,6.36294222,157.16,157.12,47.19636998]
[1749754059816,6.36294222,157.16,157.13,19.45636998]
[1749754060850,8.66264619,157.17,157.15,19.45636998]
[1749754061141,6.36260393,157.17,157.16,27.74]
[1749754063450,25.81897391,157.17,157.16,27.74]
[1749754063744,27.6648,157.16,157.04,5.94762422]
[1749754063929,19.45636998,157.08,157.05,27.72]
[1749754064132,6.36658814,157.07,157.05,27.72]
[1749754064335,6.36658814,157.07,157.04,19.45636998]
[1749754064540,6.36658814,157.07,157.05,27.7]
[1749754064773,6.36658814,157.07,157.03,27.67966998]
[1749754064947,6.36658814,157.07,157.06,27.7]
[1749754065848,6.36496722,157.11,157.06,27.7]
[1749754066017,6.36577757,157.09,157.06,27.7]
[1749754066856,35.5477531,157.09,157.06,27.7]
[1749754067723,6.36577757,157.09,157.06,56.88197553]
[1749754068438,29.18197553,157.08,157.04,29.18197553]
[1749754068927,29.18197553,157.08,157.05,27.68]
[1749754069126,29.18197553,157.08,157.06,27.68]
[1749754069329,29.18197553,157.07,157.03,30.78147553]
[1749754069527,29.18197553,157.07,157.04,27.66]
[1749754069751,29.18197553,157.08,157.04,27.66]
[1749754070156,29.18197553,157.08,157.03,30.78147553]
[1749754070327,6.36658814,157.07,157.05,27.66]